fUST/lending_fUST_20241029
["ID","MTS","AMOUNT","RATE_DAILY","PERIOD"]
[340982652,1730209836477,-151.0,0.00021917,2]
[340982653,1730209836487,-151.0,0.00021917,2]
[340982654,1730209836496,-538.02,0.00021917,3]
[340982655,1730209836505,-151.0,0.00021917,2]
[340982656,1730209836514,-241.035042,0.00021917,2]
[340982657,1730209836524,-500.0,0.00021917,3]
[340982658,1730209836534,-199.08413577,0.00021917,3]
[340982659,1730209836546,-505.87,0.00021917,3]
[340982660,1730209836555,-171.961835,0.00021918,2]
[340982661,1730209836565,-500.0,0.00021973,2]
[340982662,1730209836575,-500.0,0.00021973,2]
[340982663,1730209836585,-304.44391706,0.00021973,2]
[340982664,1730209836595,-500.0,0.00021973,2]
[340982665,1730209836604,-500.0,0.00021973,2]
[340982666,1730209836613,-500.0,0.00021973,2]
[340982667,1730209836623,-500.0,0.00021973,2]
[340982668,1730209836632,-167.0,0.00022,2]
[340982669,1730209836641,-373.0,0.00022,2]
[340982670,1730209836650,-248.917,0.0002207,2]
[340982671,1730209836659,-437.5,0.00022073,2]
[340982672,1730209836668,-1000.0,0.00022091,2]
[340982673,1730209836678,-500.0,0.00022173,2]
[340982674,1730209836686,-500.0,0.00022173,2]
[340982675,1730209836695,-500.58048344,0.00022173,2]
[340982676,1730209836704,-500.0,0.00022173,2]
[340982677,1730209836714,-500.0,0.00022173,2]
[340982678,1730209836723,-500.0,0.00022173,2]
[340982679,1730209836736,-500.0,0.00022173,2]
[340982680,1730209836746,-500.0,0.00022173,2]
[340982681,1730209836756,-500.69202066,0.00022173,2]
[340982682,1730209836766,-500.0,0.00022173,2]
[340982683,1730209836775,-505.06901712,0.00022173,2]
[340982684,1730209836786,-500.0,0.00022178,2]
[340982685,1730209836798,-500.0,0.00022188,2]
[340982686,1730209836807,-500.0,0.00022191,3]
[340982687,1730209836816,-500.0,0.00022191,3]
[340982688,1730209836827,-500.0,0.00022191,3]
[340982689,1730209836838,-500.0,0.00022191,3]
[340982690,1730209836848,-503.83,0.00022191,3]
[340982691,1730209836857,-500.0,0.00022191,3]
[340982692,1730209836867,-500.0,0.00022191,3]
[340982693,1730209836876,-500.0,0.00022191,3]
[340982694,1730209836885,-500.0,0.00022191,3]
[340982695,1730209836895,-500.0,0.00022191,3]
[340982696,1730209836905,-500.0,0.00022191,3]
[340982697,1730209836914,-500.0,0.00022191,3]
[340982698,1730209836924,-500.0,0.00022191,3]
[340982699,1730209836935,-500.0,0.00022191,3]
[340982700,1730209836946,-406.54588752,0.00022191,3]
[340982701,1730209836956,-500.0,0.00022191,3]
[340982702,1730209836965,-500.0,0.00022191,3]
[340982703,1730209836975,-277.47284977,0.00022191,3]
[340982704,1730209836985,-500.0,0.00022191,3]
[340982705,1730209836994,-500.0,0.00022191,3]
[340982706,1730209837003,-500.0,0.00022191,3]
[340982707,1730209837013,-500.0,0.00022191,3]
[340982708,1730209837022,-500.0,0.00022191,3]
[340982709,1730209837032,-200.52941771,0.00022191,3]
[340982710,1730209837042,-500.0,0.00022191,3]
[340982711,1730209837051,-500.0,0.00022191,3]
[340982712,1730209837061,-609.21,0.00022191,3]
[340982713,1730209837070,-500.0,0.00022191,3]
[340982714,1730209837080,-581.89,0.00022191,3]
[340982715,1730209837090,-625.43,0.00022191,3]
[340982716,1730209837099,-500.0,0.00022191,3]
[340982717,1730209837109,-151.0,0.00022191,2]
[340982718,1730209837119,-560.86,0.00022191,3]
[340982719,1730209837213,-500.0,0.00022191,3]
[340982720,1730209837223,-500.0,0.00022191,3]
[340982721,1730209837233,-500.0,0.00022191,3]
[340982722,1730209837242,-500.0,0.00022191,3]
[340982723,1730209837251,-277.59221504,0.00022191,3]
[340982724,1730209837260,-500.0,0.00022191,3]
[340982725,1730209837269,-500.0,0.00022191,3]
[340982726,1730209837278,-500.0,0.00022191,3]
[340982727,1730209837287,-500.0,0.00022191,3]
[340982728,1730209837299,-500.0,0.00022191,3]
[340982729,1730209837308,-500.0,0.00022191,3]
[340982730,1730209837318,-500.0,0.00022191,3]
[340982731,1730209837330,-500.0,0.00022191,3]
[340982732,1730209837341,-500.0,0.00022191,3]
[340982733,1730209837353,-500.0,0.00022191,3]
[340982734,1730209837362,-500.0,0.00022191,3]
[340982735,1730209837372,-500.0,0.00022191,3]
[340982736,1730209837382,-531.88,0.00022191,3]
[340982737,1730209837392,-500.0,0.00022191,3]
[340982738,1730209837402,-500.0,0.00022191,3]
[340982739,1730209837412,-500.0,0.00022191,3]
[340982740,1730209837422,-500.0,0.00022191,3]
[340982741,1730209837433,-500.0,0.00022191,3]
[340982742,1730209837445,-795.35,0.00022191,3]
[340982743,1730209837456,-631.07,0.00022191,3]
[340982744,1730209837466,-500.0,0.00022191,3]
[340982745,1730209837478,-500.0,0.00022191,3]
[340982746,1730209837488,-535.22,0.00022191,3]
[340982747,1730209837498,-500.0,0.00022191,3]
[340982748,1730209837507,-500.0,0.00022191,3]
[340982749,1730209837517,-500.0,0.00022191,3]
[340982750,1730209837527,-500.0,0.00022191,3]
[340982751,1730209837539,-500.0,0.00022191,3]
[340982752,1730209837550,-500.0,0.00022191,3]
[340982753,1730209837561,-500.0,0.00022191,3]
[340982754,1730209837572,-500.0,0.00022191,3]
[340982755,1730209837581,-239.50785385,0.00022191,3]
[340982756,1730209837591,-500.0,0.00022191,3]
[340982757,1730209837602,-500.0,0.00022191,3]
[340982758,1730209837612,-500.0,0.00022191,3]
[340982759,1730209837623,-500.0,0.00022191,3]
[340982760,1730209837634,-500.0,0.00022191,3]
[340982761,1730209837646,-500.0,0.00022191,3]
[340982762,1730209837658,-500.0,0.00022191,3]
[340982763,1730209837668,-500.0,0.00022191,3]
[340982764,1730209837678,-500.0,0.00022191,3]
[340982765,1730209837687,-500.0,0.00022191,3]
[340982766,1730209837696,-609.81,0.00022191,3]
[340982767,1730209837706,-500.0,0.00022191,3]
[340982768,1730209837716,-500.0,0.00022191,3]
[340982769,1730209837726,-500.0,0.00022191,3]
[340982770,1730209837739,-500.0,0.00022191,3]
[340982771,1730209837750,-500.0,0.00022191,3]
[340982772,1730209837762,-523.45,0.00022191,3]
[340982773,1730209837773,-500.0,0.00022191,3]
[340982774,1730209837783,-500.0,0.00022191,3]
[340982775,1730209837801,-508.7,0.00022191,3]
[340982776,1730209837812,-500.0,0.00022191,3]
[340982777,1730209837823,-500.0,0.00022191,3]
[340982778,1730209837832,-315.04569555,0.00022191,3]
[340982779,1730209837842,-500.0,0.00022191,3]
[340982780,1730209837851,-500.0,0.00022191,3]
[340982781,1730209837861,-500.0,0.00022191,3]
[340982782,1730209837870,-500.0,0.00022191,3]
[340982783,1730209837880,-503.0,0.00022191,2]
[340982784,1730209837890,-500.0,0.00022191,3]
[340982785,1730209837901,-500.0,0.00022191,3]
[340982786,1730209837911,-500.0,0.00022191,2]
[340982787,1730209837921,-500.0,0.00022191,3]
[340982788,1730209837932,-500.0,0.00022191,3]
[340982789,1730209837943,-662.34,0.00022191,3]
[340982790,1730209837954,-500.0,0.00022191,3]
[340982791,1730209837963,-500.0,0.00022191,3]
[340982792,1730209837972,-500.0,0.00022191,3]
[340982793,1730209837982,-500.0,0.00022191,3]
[340982794,1730209837992,-500.0,0.00022191,3]
[340982795,1730209838003,-561.12,0.00022191,3]
[340982796,1730209838012,-500.0,0.00022191,3]
[340982797,1730209838021,-500.0,0.00022191,3]
[340982798,1730209838031,-500.0,0.00022191,3]
[340982799,1730209838040,-500.0,0.00022191,3]
[340982800,1730209838049,-500.0,0.00022191,3]
[340982801,1730209838059,-500.0,0.00022191,3]
[340982802,1730209838068,-384.70322298,0.00022191,3]
[340982803,1730209838078,-598.74,0.00022191,3]
[340982804,1730209838087,-588.72,0.00022191,3]
[340982805,1730209838096,-500.0,0.00022191,3]
[340982806,1730209838105,-500.0,0.00022191,3]
[340982807,1730209838115,-500.0,0.00022191,3]
[340982808,1730209838124,-500.0,0.00022191,3]
[340982809,1730209838134,-500.0,0.00022191,3]
[340982810,1730209838144,-500.0,0.00022191,3]
[340982811,1730209838154,-500.0,0.00022191,3]
[340982812,1730209838164,-500.0,0.00022191,3]
[340982813,1730209838177,-713.75,0.00022191,3]
[340982814,1730209838186,-500.0,0.00022191,3]
[340982815,1730209838197,-500.0,0.00022191,3]
[340982816,1730209838206,-500.0,0.00022191,3]
[340982817,1730209838216,-500.0,0.00022191,3]
[340982818,1730209838225,-500.0,0.00022191,3]
[340982820,1730209838234,-500.0,0.00022191,3]
[340982822,1730209838244,-500.0,0.00022191,3]
[340982823,1730209838255,-500.0,0.00022191,3]
[340982824,1730209838265,-500.0,0.00022191,3]
[340982825,1730209838275,-500.0,0.00022191,3]
[340982826,1730209838285,-151.77585477,0.00022191,2]
[340982827,1730209838296,-500.0,0.00022191,2]
[340982828,1730209838305,-500.0,0.00022191,3]
[340982829,1730209838315,-500.0,0.00022191,3]
[340982830,1730209838324,-151.0,0.00022191,2]
[340982831,1730209838334,-16226.81,0.00022191,3]
[340982832,1730209838343,-500.0,0.00022191,3]
[340982833,1730209838354,-318.14244235,0.00022191,3]
[340982834,1730209838364,-500.0,0.00022191,3]
[340982836,1730209838374,-1630.05,0.00022191,3]
[340982838,1730209838383,-500.0,0.00022191,3]
[340982840,1730209838393,-500.0,0.00022191,3]
[340982841,1730209838403,-727.81,0.00022191,3]
[340982842,1730209838412,-200.0,0.00022191,3]
[340982843,1730209838421,-500.0,0.00022191,3]
[340982844,1730209838431,-500.0,0.00022191,3]
[340982845,1730209838441,-849.96,0.00022191,3]
[340982846,1730209838451,-500.0,0.00022191,2]
[340982847,1730209838463,-1026.44,0.00022191,3]
[340982848,1730209838474,-500.0,0.00022191,3]
[340982849,1730209838485,-1771.25,0.00022191,3]
[340982850,1730209838494,-500.0,0.00022191,3]
[340982851,1730209838504,-500.0,0.00022191,3]
[340982852,1730209838515,-500.0,0.00022191,3]
[340982853,1730209838524,-500.0,0.00022191,3]
[340982854,1730209838536,-500.0,0.00022191,3]
[340982855,1730209838550,-500.0,0.00022191,2]
[340982856,1730209838560,-500.0,0.00022191,3]
[340982857,1730209838570,-500.0,0.00022191,3]
[340982858,1730209838578,-500.0,0.00022191,3]
[340982859,1730209838589,-500.0,0.00022191,3]
[340982860,1730209838599,-500.0,0.00022191,3]
[340982861,1730209838608,-500.0,0.00022191,3]
[340982862,1730209838617,-309.12601042,0.00022191,3]
[340982863,1730209838626,-500.0,0.00022191,3]
[340982865,1730209838636,-500.0,0.00022191,3]
[340982866,1730209838646,-799.29,0.00022191,3]
[340982867,1730209838657,-500.0,0.00022191,3]
[340982868,1730209838667,-500.0,0.00022191,3]
[340982869,1730209838677,-453.47465788,0.00022191,3]
[340982870,1730209838687,-538.14,0.00022191,3]
[340982871,1730209838698,-592.67,0.00022191,3]
[340982872,1730209838707,-500.0,0.00022191,3]
[340982873,1730209838717,-500.0,0.00022191,3]
[340982874,1730209838726,-1512.81,0.00022191,3]
[340982875,1730209838739,-575.96,0.00022191,3]
[340982876,1730209838750,-732.96,0.00022191,3]
[340982877,1730209838761,-500.0,0.00022191,3]
[340982878,1730209838771,-500.0,0.00022191,3]
[340982879,1730209838782,-500.0,0.00022191,3]
[340982880,1730209838792,-500.0,0.00022191,3]
[340982881,1730209838801,-500.0,0.00022191,3]
[340982882,1730209838812,-767.5,0.00022191,3]
[340982883,1730209838822,-500.0,0.00022191,3]
[340982884,1730209838831,-621.13,0.00022191,3]
[340982885,1730209838840,-1566.39,0.00022191,3]
[340982886,1730209838849,-500.0,0.00022191,3]
[340982887,1730209838859,-500.0,0.00022191,3]
[340982888,1730209838869,-500.0,0.00022191,3]
[340982889,1730209838880,-500.0,0.00022191,3]
[340982890,1730209838890,-1122.25,0.00022191,3]
[340982891,1730209838901,-500.0,0.00022191,3]
[340982892,1730209838912,-503.93,0.00022191,3]
[340982893,1730209838921,-506.45,0.00022191,3]
[340982894,1730209838931,-500.0,0.00022191,3]
[340982895,1730209838941,-500.0,0.00022191,3]
[340982896,1730209838951,-500.0,0.00022191,3]
[340982897,1730209838961,-500.0,0.00022191,3]
[340982898,1730209838970,-500.0,0.00022191,3]
[340982899,1730209838979,-500.0,0.00022191,3]
[340982900,1730209839069,-500.0,0.00022191,3]
[340982901,1730209839078,-538.02,0.00022191,3]
[340982902,1730209839088,-500.0,0.00022191,3]
[340982903,1730209839098,-373.0,0.00022192,2]
[340982904,1730209839107,-156.203,0.0002229,2]
[340982905,1730209839116,-528.988,0.0002229,2]
[340982906,1730209839127,-1152.544,0.0002229,2]
[340982907,1730209839137,-2400.0,0.0002229,2]
[340982908,1730209839146,-210.76888226,0.00022312,7]
[340982909,1730209839155,-4139.56412716,0.000224,2]
[340982910,1730209839165,-245.05690729,0.00022465,2]
[340982911,1730209839174,-503.0,0.00022465,2]
[340982912,1730209839183,-500.0,0.00022465,2]
[340982913,1730209839192,-151.0,0.00022465,2]
[340982914,1730209839202,-500.0,0.00022465,2]
[340982915,1730209839212,-500.0,0.00022465,3]
[340982916,1730209839221,-500.0,0.00022465,3]
[340982917,1730209839233,-516.02752456,0.00022465,3]
[340982918,1730209839242,-500.0,0.00022465,3]
[340982919,1730209839252,-503.83,0.00022465,3]
[340982920,1730209839262,-500.0,0.00022465,3]
[340982921,1730209839272,-500.0,0.00022465,3]
[340982922,1730209839281,-500.0,0.00022465,3]
[340982923,1730209839294,-500.0,0.00022465,3]
[340982924,1730209839303,-500.0,0.00022465,3]
[340982925,1730209839314,-500.0,0.00022465,3]
[340982926,1730209839324,-500.0,0.00022465,3]
[340982927,1730209839333,-500.0,0.00022465,3]
[340982928,1730209839343,-500.0,0.00022465,3]
[340982929,1730209839352,-500.0,0.00022465,3]
[340982930,1730209839362,-500.0,0.00022465,3]
[340982931,1730209839372,-500.0,0.00022465,3]
[340982932,1730209839382,-500.0,0.00022465,3]
[340982933,1730209839392,-500.0,0.00022465,3]
[340982934,1730209839401,-500.0,0.00022465,3]
[340982935,1730209839411,-500.0,0.00022465,3]
[340982936,1730209839420,-500.0,0.00022465,3]
[340982937,1730209839429,-500.0,0.00022465,3]
[340982938,1730209839439,-609.21,0.00022465,3]
[340982939,1730209839448,-500.0,0.00022465,3]
[340982940,1730209839457,-581.89,0.00022465,3]
[340982941,1730209839467,-625.43,0.00022465,3]
[340982942,1730209839476,-500.0,0.00022465,3]
[340982943,1730209839485,-560.86,0.00022465,3]
[340982944,1730209839495,-500.0,0.00022465,3]
[340982945,1730209839506,-500.0,0.00022465,3]
[340982946,1730209839515,-500.0,0.00022465,3]
[340982947,1730209839524,-500.0,0.00022465,3]
[340982948,1730209839534,-500.0,0.00022465,3]
[340982949,1730209839546,-500.0,0.00022465,3]
[340982950,1730209839556,-500.0,0.00022465,3]
[340982951,1730209839565,-500.0,0.00022465,3]
[340982952,1730209839574,-500.0,0.00022465,3]
[340982953,1730209839584,-500.0,0.00022465,3]
[340982954,1730209839594,-500.0,0.00022465,3]
[340982955,1730209839603,-500.0,0.00022465,3]
[340982956,1730209839613,-500.0,0.00022465,3]
[340982957,1730209839622,-500.0,0.00022465,3]
[340982958,1730209839631,-500.0,0.00022465,3]
[340982959,1730209839640,-500.0,0.00022465,3]
[340982960,1730209839650,-531.88,0.00022465,3]
[340982961,1730209839659,-500.0,0.00022465,3]
[340982962,1730209839668,-500.0,0.00022465,3]
[340982963,1730209839677,-500.0,0.00022465,3]
[340982964,1730209839687,-500.0,0.00022465,3]
[340982965,1730209839697,-511.99021341,0.00022465,3]
[340982966,1730209839706,-795.35,0.00022465,3]
[340982967,1730209839716,-631.07,0.00022465,3]
[340982968,1730209839725,-500.0,0.00022465,3]
[340982969,1730209839738,-500.0,0.00022465,3]
[340982970,1730209839747,-535.22,0.00022465,3]
[340982971,1730209839756,-500.0,0.00022465,3]
[340982972,1730209839765,-500.0,0.00022465,3]
[340982973,1730209839775,-500.0,0.00022465,3]
[340982974,1730209839784,-500.0,0.00022465,3]
[340982975,1730209839794,-500.0,0.00022465,3]
[340982976,1730209839804,-500.0,0.00022465,3]
[340982977,1730209839815,-500.0,0.00022465,3]
[340982978,1730209839824,-500.0,0.00022465,3]
[340982979,1730209839833,-500.0,0.00022465,3]
[340982980,1730209839842,-500.0,0.00022465,3]
[340982981,1730209839851,-500.0,0.00022465,3]
[340982982,1730209839860,-503.29809942,0.00022465,3]
[340982983,1730209839869,-500.0,0.00022465,3]
[340982984,1730209839880,-500.0,0.00022465,3]
[340982985,1730209839890,-500.0,0.00022465,3]
[340982986,1730209839899,-500.0,0.00022465,3]
[340982987,1730209839909,-500.0,0.00022465,3]
[340982988,1730209839918,-500.0,0.00022465,3]
[340982989,1730209839929,-609.81,0.00022465,3]
[340982990,1730209839939,-500.0,0.00022465,3]
[340982991,1730209839950,-500.0,0.00022465,3]
[340982992,1730209839960,-500.0,0.00022465,3]
[340982993,1730209839970,-500.0,0.00022465,3]
[340982994,1730209839979,-198.0321622,0.00022465,3]
[340982995,1730209839990,-523.45,0.00022465,3]
[340982996,1730209840001,-458.87182357,0.00022465,3]
[340982997,1730209840011,-243.82899726,0.00022465,3]
[340982998,1730209840021,-508.7,0.00022465,3]
[340982999,1730209840030,-500.0,0.00022465,3]
[340983000,1730209840039,-500.0,0.00022465,3]
[340983001,1730209840052,-500.0,0.00022465,3]
[340983002,1730209840063,-500.0,0.00022465,3]
[340983003,1730209840072,-500.0,0.00022465,3]
[340983004,1730209840082,-500.0,0.00022465,3]
[340983005,1730209840092,-500.0,0.00022465,3]
[340983006,1730209840102,-500.0,0.00022465,2]
[340983007,1730209840111,-500.0,0.00022465,3]
[340983009,1730209840121,-500.0,0.00022465,3]
[340983010,1730209840132,-662.34,0.00022465,3]
[340983011,1730209840143,-289.46004931,0.00022465,3]
[340983012,1730209840155,-500.0,0.00022465,3]
[340983013,1730209840166,-500.0,0.00022465,3]
[340983014,1730209840175,-500.0,0.00022465,3]
[340983015,1730209840184,-500.0,0.00022465,3]
[340983016,1730209840193,-561.12,0.00022465,3]
[340983017,1730209840202,-500.0,0.00022465,3]
[340983018,1730209840212,-500.0,0.00022465,3]
[340983019,1730209840221,-500.0,0.00022465,3]
[340983020,1730209840230,-500.0,0.00022465,3]
[340983021,1730209840239,-500.0,0.00022465,3]
[340983022,1730209840248,-500.0,0.00022465,3]
[340983023,1730209840257,-598.74,0.00022465,3]
[340983024,1730209840266,-588.72,0.00022465,3]
[340983025,1730209840276,-500.0,0.00022465,3]
[340983026,1730209840285,-500.0,0.00022465,3]
[340983027,1730209840297,-444.20976831,0.00022465,3]
[340983029,1730209840306,-500.0,0.00022465,3]
[340983030,1730209840316,-299.21581706,0.00022465,3]
[340983031,1730209840325,-500.0,0.00022465,3]
[340983032,1730209840334,-500.0,0.00022465,3]
[340983033,1730209840344,-500.0,0.00022465,3]
[340983034,1730209840353,-713.75,0.00022465,3]
[340983035,1730209840363,-500.0,0.00022465,3]
[340983036,1730209840372,-500.0,0.00022465,3]
[340983037,1730209840382,-500.0,0.00022465,3]
[340983038,1730209840391,-500.0,0.00022465,3]
[340983039,1730209840401,-500.0,0.00022465,3]
[340983041,1730209840412,-500.0,0.00022465,3]
[340983042,1730209840422,-500.0,0.00022465,3]
[340983044,1730209840432,-500.0,0.00022465,3]
[340983046,1730209840442,-500.0,0.00022465,3]
[340983048,1730209840451,-500.0,0.00022465,3]
[340983049,1730209840460,-500.0,0.00022465,3]
[340983051,1730209840470,-500.0,0.00022465,3]
[340983053,1730209840480,-16226.81,0.00022465,3]
[340983054,1730209840490,-500.0,0.00022465,3]
[340983056,1730209840499,-500.0,0.00022465,3]
[340983058,1730209840509,-1630.05,0.00022465,3]
[340983059,1730209840519,-500.0,0.00022465,3]
[340983060,1730209840528,-331.00000001,0.00022465,3]
[340983061,1730209840537,-727.81,0.00022465,3]
[340983062,1730209840550,-200.0,0.00022465,3]
[340983064,1730209840559,-500.0,0.00022465,3]
[340983066,1730209840568,-500.0,0.00022465,3]
[340983068,1730209840577,-849.96,0.00022465,3]
[340983069,1730209840587,-1026.44,0.00022465,3]
[340983071,1730209840596,-500.0,0.00022465,3]
[340983073,1730209840608,-1771.25,0.00022465,3]
[340983075,1730209840617,-500.0,0.00022465,3]
[340983076,1730209840626,-500.0,0.00022465,3]
[340983084,1730209840712,-500.0,0.00022465,3]
[340983086,1730209840722,-500.0,0.00022465,3]
[340983088,1730209840734,-500.0,0.00022465,3]
[340983090,1730209840745,-500.0,0.00022465,2]
[340983091,1730209840755,-500.0,0.00022465,3]
[340983093,1730209840764,-500.0,0.00022465,3]
[340983095,1730209840775,-500.0,0.00022465,3]
[340983097,1730209840784,-500.0,0.00022465,3]
[340983098,1730209840794,-500.0,0.00022465,3]
[340983100,1730209840804,-500.0,0.00022465,3]
[340983102,1730209840815,-500.0,0.00022465,3]
[340983104,1730209840825,-500.0,0.00022465,3]
[340983106,1730209840835,-799.29,0.00022465,3]
[340983108,1730209840845,-500.0,0.00022465,3]
[340983109,1730209840854,-500.0,0.00022465,3]
[340983111,1730209840864,-538.14,0.00022465,3]
[340983113,1730209840873,-592.67,0.00022465,3]
[340983115,1730209840883,-500.0,0.00022465,3]
[340983117,1730209840893,-500.0,0.00022465,3]
[340983118,1730209840902,-1512.81,0.00022465,3]
[340983120,1730209840911,-575.96,0.00022465,3]
[340983122,1730209840922,-732.96,0.00022465,3]
[340983124,1730209840931,-500.0,0.00022465,3]
[340983126,1730209840943,-500.0,0.00022465,3]
[340983127,1730209840953,-500.0,0.00022465,3]
[340983129,1730209840962,-500.0,0.00022465,3]
[340983130,1730209840972,-500.0,0.00022465,3]
[340983132,1730209840982,-767.5,0.00022465,3]
[340983135,1730209840992,-500.0,0.00022465,3]
[340983137,1730209841002,-621.13,0.00022465,3]
[340983140,1730209841013,-333.19824842,0.00022465,3]
[340983145,1730209841439,-151.0,0.00021917,2]
[340983146,1730209841449,-151.0,0.00021917,2]
[340983147,1730209841459,-151.0,0.00021917,2]
[340983148,1730209841468,-216.19392819,0.00021917,2]
[340983149,1730209841481,-13.19497581,0.00021917,2]
[340983150,1730209841491,-500.0,0.00021917,3]
[340983151,1730209841500,-505.87,0.00022191,3]
[340983152,1730209841512,-467.32086815,0.00022191,3]
[340983153,1730209841522,-166.80175158,0.00022465,3]
[340983154,1730209841532,-1566.39,0.00022465,3]
[340983155,1730209841542,-500.0,0.00022465,3]
[340983156,1730209841558,-500.0,0.00022465,3]
[340983157,1730209841567,-500.0,0.00022465,3]
[340983158,1730209841577,-1122.25,0.00022465,3]
[340983159,1730209841587,-500.0,0.00022465,3]
[340983160,1730209841596,-503.93,0.00022465,3]
[340983161,1730209841606,-506.45,0.00022465,3]
[340983162,1730209841616,-500.0,0.00022465,3]
[340983163,1730209841625,-500.0,0.00022465,3]
[340983164,1730209841635,-500.0,0.00022465,3]
[340983165,1730209841644,-500.0,0.00022465,3]
[340983166,1730209841654,-500.0,0.00022465,3]
[340983167,1730209841665,-500.0,0.00022465,3]
[340983168,1730209841674,-500.0,0.00022465,3]
[340983169,1730209841684,-538.02,0.00022465,3]
[340983170,1730209841693,-500.0,0.00022465,3]
[340983171,1730209841702,-505.87,0.00022465,3]
[340983172,1730209841712,-157.47137968,0.00022473,2]
[340983173,1730209841722,-207.32510238,0.00022473,2]
[340983174,1730209841736,-57952.1059224,0.00022512,2]
[340983175,1730209841748,-49439.38866395,0.00022512,2]
[340983176,1730209841760,-892.08142219,0.00022512,2]
[340983177,1730209841790,-555.73302187,0.00021916,2]
[340983178,1730209841807,-37729.62216248,0.00022512,2]
[340983189,1730209844305,-500.0,0.00021917,3]
[340983190,1730209844315,-322.00535545,0.00021917,3]
[340983191,1730209844387,-177.99464455,0.00021917,3]
[340983192,1730209844397,-500.0,0.00022191,3]
[340983193,1730209844407,-70839.69537159,0.00022512,2]
[340983208,1730209846804,-547.25,0.00021917,3]
[340983209,1730209846815,-500.0,0.00022191,3]
[340983210,1730209846826,-500.0,0.00022465,3]
[340983211,1730209846835,-500.0,0.00022465,3]
[340983212,1730209846844,-3759.26399223,0.00022512,2]
[340983213,1730210102196,204.7865507,0.00019891,2]
[340983214,1730210164630,173.268626,0.00013973,2]
[340983222,1730210740103,-167.909173,0.0002082,2]
[340983223,1730210740126,-250.0,0.00020917,2]
[340983224,1730210740147,-684.64974914,0.00021084,2]
[340983225,1730210743206,-1793.22558052,0.00021084,2]
[340983226,1730210827121,-2565.21326664,0.00021084,2]
[340983227,1730210827148,-4.1920967,0.00021916,2]
[340983228,1730210838087,-501.35,0.00021,2]
[340983229,1730210838110,-624.53191304,0.00021916,2]
[340983230,1730210838260,-256.2705755,0.00021916,2]
[340983231,1730210838283,-179.38940284,0.00021916,2]
[340983232,1730210838306,-300.0,0.00021916,2]
[340983233,1730210838333,-300.0,0.00021916,2]
[340983234,1730210838357,-371.15985876,0.00021917,2]
[340983235,1730210838380,-500.0,0.00021917,3]
[340983236,1730210838407,-527.84119167,0.00021917,3]
[340983237,1730210838429,-500.0,0.00021917,3]
[340983238,1730210838450,-500.0,0.00021917,3]
[340983239,1730210838472,-500.0,0.00021917,3]
[340983240,1730210838492,-500.0,0.00021917,3]
[340983241,1730210838514,-500.0,0.00021917,3]